[Event "Titled Tuesday Blitz June 14 Late 2022"]
[White "Ocelak, Jakub"]
[Black "Nazaretyan, Tigran"]
[WhiteFideId "23707933"]
[BlackFideId "24162345"]
[WhiteElo "2048"]
[BlackElo "2179"]
[Result "0-1"]
[Round "07"]
[TimeControl "180+1"]
[Date "2022.06.15"]
[WhiteClock "0:00:02"]
[BlackClock "0:00:08"]

1. e4 {[%clk 0:03:00]}  c5 {[%clk 0:02:59]} 2. a3 {[%clk 0:03:01]}  g6 {[%clk 0:02:58]} 3. h4 {[%clk 0:03:00]}  h5 {[%clk 0:02:56]} 4. Bc4 {[%clk 0:02:59]}  Bg7 {[%clk 0:02:54]} 5. Qf3 {[%clk 0:02:59]}  e6 {[%clk 0:02:52]} 6. d3 {[%clk 0:02:48]}  Nc6 {[%clk 0:02:52]} 7. Nc3 {[%clk 0:02:40]}  Nge7 {[%clk 0:02:48]} 8. Nge2 {[%clk 0:02:35]}  Ne5 {[%clk 0:02:39]} 9. Qe3 {[%clk 0:02:32]}  b6 {[%clk 0:02:35]} 10. Ba2 {[%clk 0:02:29]}  d5 {[%clk 0:02:32]} 11. exd5 {[%clk 0:02:21]}  exd5 {[%clk 0:02:33]} 12. d4 {[%clk 0:02:16]}  Ng4 {[%clk 0:02:15]} 13. Qd2 {[%clk 0:02:02]}  c4 {[%clk 0:02:09]} 14. Qd1 {[%clk 0:01:27]}  Nf5 {[%clk 0:02:02]} 15. Bg5 {[%clk 0:01:22]}  Qd7 {[%clk 0:01:52]} 16. Qd2 {[%clk 0:01:17]}  O-O {[%clk 0:01:50]} 17. f3 {[%clk 0:01:14]}  Nf6 {[%clk 0:01:43]} 18. O-O-O {[%clk 0:01:11]}  b5 {[%clk 0:01:42]} 19. Rdg1 {[%clk 0:00:58]}  Nh7 {[%clk 0:01:25]} 20. Bf4 {[%clk 0:00:50]}  a5 {[%clk 0:01:20]} 21. g4 {[%clk 0:00:47]}  hxg4 {[%clk 0:01:18]} 22. fxg4 {[%clk 0:00:46]}  Ne7 {[%clk 0:01:17]} 23. h5 {[%clk 0:00:39]}  b4 {[%clk 0:01:16]} 24. Nb1 {[%clk 0:00:27]}  Rb8 {[%clk 0:01:01]} 25. hxg6 {[%clk 0:00:20]}  Nxg6 {[%clk 0:00:57]} 26. Bh6 {[%clk 0:00:21]}  f6 {[%clk 0:00:41]} 27. Bxg7 {[%clk 0:00:20]}  Qxg7 {[%clk 0:00:41]} 28. Ng3 {[%clk 0:00:21]}  Bxg4 {[%clk 0:00:34]} 29. Nh5 {[%clk 0:00:15]}  Bxh5 {[%clk 0:00:33]} 30. Rxh5 {[%clk 0:00:16]}  Ng5 {[%clk 0:00:32]} 31. b3 {[%clk 0:00:12]}  c3 {[%clk 0:00:30]} 32. Nxc3 {[%clk 0:00:13]}  bxc3 {[%clk 0:00:30]} 33. Qxc3 {[%clk 0:00:14]}  Nf4 {[%clk 0:00:29]} 34. Rh2 {[%clk 0:00:12]}  Rbc8 {[%clk 0:00:28]} 35. Qd2 {[%clk 0:00:10]}  Ng6 {[%clk 0:00:23]} 36. b4 {[%clk 0:00:10]}  Rfd8 {[%clk 0:00:22]} 37. bxa5 {[%clk 0:00:10]}  Ne4 {[%clk 0:00:21]} 38. Qe3 {[%clk 0:00:08]}  f5 {[%clk 0:00:20]} 39. Rhg2 {[%clk 0:00:08]}  Rc6 {[%clk 0:00:20]} 40. a6 {[%clk 0:00:03]}  Rxa6 {[%clk 0:00:19]} 41. Qf4 {[%clk 0:00:04]}  Nxf4 {[%clk 0:00:18]} 42. Rxg7+ {[%clk 0:00:03]}  Kf8 {[%clk 0:00:18]} 43. Rh7 {[%clk 0:00:03]}  Rg6 {[%clk 0:00:16]} 44. Rh8+ {[%clk 0:00:02]}  Ke7 {[%clk 0:00:16]} 45. Rgh1 {[%clk 0:00:01]}  Rxh8 {[%clk 0:00:12]} 46. Rxh8 {[%clk 0:00:02]}  Nc3 {[%clk 0:00:11]} 47. Kb2 {[%clk 0:00:01]}  Nxa2 {[%clk 0:00:10]} 48. Kxa2 {[%clk 0:00:02]}  Ne6 {[%clk 0:00:11]} 49. Kb3 {[%clk 0:00:02]}  Nxd4+ {[%clk 0:00:11]} 50. Kb4 {[%clk 0:00:03]}  Nxc2+ {[%clk 0:00:10]} 51. Kc5 {[%clk 0:00:03]}  Ne3 {[%clk 0:00:10]} 52. Kd4 {[%clk 0:00:03]}  Rg3 {[%clk 0:00:10]} 53. Rh7+ {[%clk 0:00:02]}  Kf6 {[%clk 0:00:10]} 54. Rh6+ {[%clk 0:00:02]}  Kg5 {[%clk 0:00:11]} 55. Rh8 {[%clk 0:00:02]}  f4 {[%clk 0:00:11]} 56. a4 {[%clk 0:00:02]}  Nf5+ {[%clk 0:00:11]} 57. Ke5 {[%clk 0:00:02]}  Re3+ {[%clk 0:00:11]} 58. Kxd5 {[%clk 0:00:02]}  f3 {[%clk 0:00:11]} 59. a5 {[%clk 0:00:01]}  f2 {[%clk 0:00:12]} 60. Rh1 {[%clk 0:00:02]}  Re1 {[%clk 0:00:12]} 61. Rxe1 {[%clk 0:00:01]}  fxe1=Q {[%clk 0:00:12]} 62. a6 {[%clk 0:00:02]}  Qa5+ {[%clk 0:00:11]} 63. Kc6 {[%clk 0:00:02]}  Qxa6+ {[%clk 0:00:12]} 64. Kc7 {[%clk 0:00:02]}  Qd6+ {[%clk 0:00:12]} 65. Kb7 {[%clk 0:00:02]}  Nd4 {[%clk 0:00:11]} 66. Kc8 {[%clk 0:00:03]}  Kf6 {[%clk 0:00:11]} 67. Kb7 {[%clk 0:00:03]}  Ke7 {[%clk 0:00:11]} 68. Kc8 {[%clk 0:00:03]}  Ke8 {[%clk 0:00:11]} 69. Kb7 {[%clk 0:00:03]}  Kd8 {[%clk 0:00:11]} 70. Ka8 {[%clk 0:00:03]}  Kc7 {[%clk 0:00:11]} 71. Ka7 {[%clk 0:00:03]}  Nc2 {[%clk 0:00:11]} 72. Ka8 {[%clk 0:00:03]}  Na3 {[%clk 0:00:11]} 73. Ka7 {[%clk 0:00:02]}  Nb5+ {[%clk 0:00:11]} 74. Ka8 {[%clk 0:00:02]}  Qd5# {[%clk 0:00:08]} 0-1


[Site "https://www.chess.com"]

[Event "Titled Tuesday Blitz June 14 Late 2022"]
[White "Przybylski, Wojciech"]
[Black "Chiu, Isaac"]
[WhiteFideId "1117599"]
[BlackFideId "30900654"]
[WhiteElo "2133"]
[BlackElo "2117"]
[Result "1-0"]
[Round "07"]
[TimeControl "180+1"]
[Date "2022.06.14"]
[WhiteClock "0:00:09"]
[BlackClock "0:00:09"]

1. e4 {[%clk 0:02:48]}  e6 {[%clk 0:02:57]} 2. d4 {[%clk 0:02:44]}  d5 {[%clk 0:02:57]} 3. Nc3 {[%clk 0:02:43]}  Bb4 {[%clk 0:02:55]} 4. a3 {[%clk 0:02:42]}  Bxc3+ {[%clk 0:02:53]} 5. bxc3 {[%clk 0:02:43]}  dxe4 {[%clk 0:02:53]} 6. Qg4 {[%clk 0:02:43]}  Nf6 {[%clk 0:02:51]} 7. Qxg7 {[%clk 0:02:43]}  Rg8 {[%clk 0:02:52]} 8. Qh6 {[%clk 0:02:43]}  Nc6 {[%clk 0:02:24]} 9. Ne2 {[%clk 0:02:39]}  e5 {[%clk 0:02:22]} 10. Qe3 {[%clk 0:02:35]}  Bf5 {[%clk 0:02:15]} 11. h3 {[%clk 0:02:29]}  Nd5 {[%clk 0:02:09]} 12. Qd2 {[%clk 0:02:29]}  Nb6 {[%clk 0:02:07]} 13. Ng3 {[%clk 0:02:26]}  Bg6 {[%clk 0:02:05]} 14. Bb5 {[%clk 0:02:22]}  a6 {[%clk 0:02:01]} 15. Bxc6+ {[%clk 0:02:18]}  bxc6 {[%clk 0:02:02]} 16. dxe5 {[%clk 0:02:16]}  Nc4 {[%clk 0:01:49]} 17. Qxd8+ {[%clk 0:01:59]}  Rxd8 {[%clk 0:01:49]} 18. Bf4 {[%clk 0:01:43]}  e3 {[%clk 0:01:49]} 19. fxe3 {[%clk 0:01:36]}  Bxc2 {[%clk 0:01:48]} 20. O-O {[%clk 0:01:28]}  Nxe3 {[%clk 0:01:36]} 21. Rf2 {[%clk 0:00:51]}  Nd5 {[%clk 0:01:32]} 22. Nh5 {[%clk 0:00:51]}  Bg6 {[%clk 0:01:29]} 23. Nf6+ {[%clk 0:00:50]}  Nxf6 {[%clk 0:01:29]} 24. exf6 {[%clk 0:00:50]}  Kd7 {[%clk 0:01:26]} 25. Re1 {[%clk 0:00:45]}  Rge8 {[%clk 0:01:22]} 26. Rd2+ {[%clk 0:00:32]}  Kc8 {[%clk 0:01:19]} 27. Re7 {[%clk 0:00:26]}  Rxd2 {[%clk 0:01:12]} 28. Rxe8+ {[%clk 0:00:23]}  Rd8 {[%clk 0:01:10]} 29. Re7 {[%clk 0:00:23]}  Rd7 {[%clk 0:01:10]} 30. Kf2 {[%clk 0:00:20]}  Rxe7 {[%clk 0:01:06]} 31. fxe7 {[%clk 0:00:20]}  Kd7 {[%clk 0:01:07]} 32. Bg5 {[%clk 0:00:19]}  h6 {[%clk 0:00:59]} 33. Bf6 {[%clk 0:00:19]}  Ke8 {[%clk 0:00:43]} 34. g4 {[%clk 0:00:19]}  Bd3 {[%clk 0:00:40]} 35. Ke3 {[%clk 0:00:18]}  Bf1 {[%clk 0:00:40]} 36. h4 {[%clk 0:00:19]}  Bh3 {[%clk 0:00:40]} 37. Kf4 {[%clk 0:00:19]}  Bf1 {[%clk 0:00:40]} 38. h5 {[%clk 0:00:18]}  Be2 {[%clk 0:00:39]} 39. g5 {[%clk 0:00:18]}  hxg5+ {[%clk 0:00:24]} 40. Kxg5 {[%clk 0:00:19]}  Bd3 {[%clk 0:00:24]} 41. Kf4 {[%clk 0:00:18]}  c5 {[%clk 0:00:17]} 42. Ke5 {[%clk 0:00:17]}  c4 {[%clk 0:00:16]} 43. Kd5 {[%clk 0:00:17]}  Kd7 {[%clk 0:00:16]} 44. Kc5 {[%clk 0:00:17]}  Bc2 {[%clk 0:00:14]} 45. Kb4 {[%clk 0:00:16]}  Be4 {[%clk 0:00:13]} 46. Kxc4 {[%clk 0:00:16]}  Bh7 {[%clk 0:00:10]} 47. Kb4 {[%clk 0:00:16]}  Be4 {[%clk 0:00:09]} 48. c4 {[%clk 0:00:16]}  Bc6 {[%clk 0:00:10]} 49. Ka5 {[%clk 0:00:16]}  Ke6 {[%clk 0:00:11]} 50. Bh4 {[%clk 0:00:10]}  f6 {[%clk 0:00:11]} 51. h6 {[%clk 0:00:10]}  Be4 {[%clk 0:00:09]} 52. e8=Q+ {[%clk 0:00:09]} 1-0


[Site "https://www.chess.com"]

[Event "Titled Tuesday Blitz June 14 Late 2022"]
[White "Rios Escobar, Adan"]
[Black "Jiganchine, Roman"]
[WhiteFideId "3403645"]
[BlackFideId "2603667"]
[WhiteElo "2430"]
[BlackElo "2233"]
[Result "1-0"]
[Round "07"]
[TimeControl "180+1"]
[Date "2022.06.15"]
[WhiteClock "0:00:03"]
[BlackClock "0:00:02"]

1. d4 {[%clk 0:02:56]}  d5 {[%clk 0:02:59]} 2. Nf3 {[%clk 0:02:55]}  Nf6 {[%clk 0:02:58]} 3. g3 {[%clk 0:02:54]}  Bf5 {[%clk 0:02:54]} 4. c4 {[%clk 0:02:52]}  c6 {[%clk 0:02:53]} 5. Nc3 {[%clk 0:02:52]}  e6 {[%clk 0:02:53]} 6. Nh4 {[%clk 0:02:52]}  Bg6 {[%clk 0:02:52]} 7. Qb3 {[%clk 0:02:52]}  Qb6 {[%clk 0:02:37]} 8. Nxg6 {[%clk 0:02:52]}  hxg6 {[%clk 0:02:35]} 9. c5 {[%clk 0:02:53]}  Qc7 {[%clk 0:02:32]} 10. e4 {[%clk 0:02:46]}  dxe4 {[%clk 0:02:16]} 11. Bf4 {[%clk 0:02:45]}  Qc8 {[%clk 0:02:14]} 12. Bg2 {[%clk 0:02:44]}  Nbd7 {[%clk 0:02:00]} 13. Nxe4 {[%clk 0:02:35]}  Nxe4 {[%clk 0:01:59]} 14. Bxe4 {[%clk 0:02:36]}  Nf6 {[%clk 0:01:57]} 15. Bg2 {[%clk 0:02:34]}  Be7 {[%clk 0:01:57]} 16. O-O {[%clk 0:02:31]}  O-O {[%clk 0:01:57]} 17. Rfe1 {[%clk 0:02:29]}  Rd8 {[%clk 0:01:53]} 18. Bh3 {[%clk 0:02:20]}  Nd5 {[%clk 0:01:52]} 19. Re4 {[%clk 0:02:02]}  Bf6 {[%clk 0:01:51]} 20. Rae1 {[%clk 0:01:57]}  Re8 {[%clk 0:01:48]} 21. Bd6 {[%clk 0:01:55]}  Qd7 {[%clk 0:01:43]} 22. Qf3 {[%clk 0:01:48]}  b5 {[%clk 0:01:35]} 23. Be5 {[%clk 0:01:40]}  a5 {[%clk 0:01:29]} 24. Bxf6 {[%clk 0:01:33]}  gxf6 {[%clk 0:01:25]} 25. Rh4 {[%clk 0:01:28]}  Kg7 {[%clk 0:01:22]} 26. Bg2 {[%clk 0:01:19]}  Rh8 {[%clk 0:01:19]} 27. Rhe4 {[%clk 0:01:19]}  f5 {[%clk 0:01:18]} 28. R4e2 {[%clk 0:01:17]}  Rad8 {[%clk 0:01:15]} 29. a3 {[%clk 0:01:14]}  a4 {[%clk 0:01:15]} 30. h4 {[%clk 0:01:06]}  Ne7 {[%clk 0:01:05]} 31. Rd2 {[%clk 0:00:57]}  Nd5 {[%clk 0:01:03]} 32. Qe2 {[%clk 0:00:52]}  Qe7 {[%clk 0:01:00]} 33. Qe5+ {[%clk 0:00:51]}  Qf6 {[%clk 0:01:00]} 34. Bxd5 {[%clk 0:00:46]}  Rxd5 {[%clk 0:00:53]} 35. Qc7 {[%clk 0:00:45]}  Rxd4 {[%clk 0:00:36]} 36. Rde2 {[%clk 0:00:43]}  Rhd8 {[%clk 0:00:28]} 37. Qxc6 {[%clk 0:00:42]}  Rd1 {[%clk 0:00:27]} 38. Qxb5 {[%clk 0:00:40]}  Rxe1+ {[%clk 0:00:19]} 39. Rxe1 {[%clk 0:00:41]}  Rd2 {[%clk 0:00:19]} 40. Re2 {[%clk 0:00:30]}  Rd1+ {[%clk 0:00:17]} 41. Kh2 {[%clk 0:00:27]}  Qd4 {[%clk 0:00:18]} 42. Qb8 {[%clk 0:00:14]}  f4 {[%clk 0:00:17]} 43. Qxf4 {[%clk 0:00:12]}  Qd3 {[%clk 0:00:14]} 44. Qe5+ {[%clk 0:00:12]}  Kh7 {[%clk 0:00:15]} 45. Qe4 {[%clk 0:00:11]}  Qxe4 {[%clk 0:00:10]} 46. Rxe4 {[%clk 0:00:12]}  Rd2 {[%clk 0:00:11]} 47. Kg2 {[%clk 0:00:09]}  Rxb2 {[%clk 0:00:10]} 48. Rxa4 {[%clk 0:00:10]}  Rc2 {[%clk 0:00:11]} 49. Ra7 {[%clk 0:00:08]}  Kg7 {[%clk 0:00:09]} 50. Ra5 {[%clk 0:00:09]}  Kf6 {[%clk 0:00:09]} 51. Kf3 {[%clk 0:00:09]}  Ke5 {[%clk 0:00:09]} 52. Ke3 {[%clk 0:00:09]}  Kd5 {[%clk 0:00:09]} 53. f3 {[%clk 0:00:09]}  Rc3+ {[%clk 0:00:09]} 54. Kf4 {[%clk 0:00:08]}  f6 {[%clk 0:00:09]} 55. Kg4 {[%clk 0:00:08]}  Rc4+ {[%clk 0:00:08]} 56. f4 {[%clk 0:00:09]}  Rc3 {[%clk 0:00:08]} 57. Kh3 {[%clk 0:00:07]}  f5 {[%clk 0:00:08]} 58. Kg2 {[%clk 0:00:04]}  Rc2+ {[%clk 0:00:08]} 59. Kf3 {[%clk 0:00:04]}  Rc3+ {[%clk 0:00:07]} 60. Kg2 {[%clk 0:00:05]}  Rc2+ {[%clk 0:00:07]} 61. Kh3 {[%clk 0:00:05]}  Rc3 {[%clk 0:00:08]} 62. Ra7 {[%clk 0:00:04]}  Rxc5 {[%clk 0:00:06]} 63. Rg7 {[%clk 0:00:05]}  Ra5 {[%clk 0:00:06]} 64. Rxg6 {[%clk 0:00:05]}  Rxa3 {[%clk 0:00:06]} 65. h5 {[%clk 0:00:05]}  Ra1 {[%clk 0:00:06]} 66. Kh4 {[%clk 0:00:06]}  Rg1 {[%clk 0:00:06]} 67. h6 {[%clk 0:00:05]}  Kd6 {[%clk 0:00:06]} 68. Rg7 {[%clk 0:00:05]}  Rh1+ {[%clk 0:00:02]} 69. Kg5 {[%clk 0:00:05]}  Rh3 {[%clk 0:00:02]} 70. h7 {[%clk 0:00:03]}  Rxg3+ {[%clk 0:00:02]} 71. Kf6 {[%clk 0:00:03]}  Rh3 {[%clk 0:00:02]} 72. Kf7 {[%clk 0:00:03]} 1-0


[Site "https://www.chess.com"]

[Event "Titled Tuesday Blitz June 14 Late 2022"]
[White "Roman, Rodrigo"]
[Black "Bryakin, Mikhail"]
[WhiteFideId "3701220"]
[BlackFideId "4165314"]
[WhiteElo "2001"]
[BlackElo "2417"]
[Result "0-1"]
[Round "07"]
[TimeControl "180+1"]
[Date "2022.06.14"]
[WhiteClock "0:00:01"]
[BlackClock "0:00:11"]

1. Nf3 {[%clk 0:03:00]}  g6 {[%clk 0:02:51]} 2. d4 {[%clk 0:03:00]}  Bg7 {[%clk 0:02:51]} 3. c4 {[%clk 0:03:01]}  c5 {[%clk 0:02:45]} 4. e3 {[%clk 0:03:00]}  cxd4 {[%clk 0:02:40]} 5. exd4 {[%clk 0:03:00]}  d5 {[%clk 0:02:39]} 6. Nc3 {[%clk 0:02:59]}  Nf6 {[%clk 0:02:39]} 7. cxd5 {[%clk 0:02:55]}  Nxd5 {[%clk 0:02:40]} 8. Bc4 {[%clk 0:02:56]}  Nb6 {[%clk 0:02:40]} 9. Bb3 {[%clk 0:02:55]}  Nc6 {[%clk 0:02:40]} 10. Be3 {[%clk 0:02:52]}  O-O {[%clk 0:02:40]} 11. O-O {[%clk 0:02:51]}  Na5 {[%clk 0:02:41]} 12. d5 {[%clk 0:02:46]}  Nxb3 {[%clk 0:02:41]} 13. Qxb3 {[%clk 0:02:47]}  e6 {[%clk 0:02:41]} 14. Rfd1 {[%clk 0:02:39]}  exd5 {[%clk 0:02:37]} 15. Bxb6 {[%clk 0:02:38]}  Qxb6 {[%clk 0:02:35]} 16. Qxb6 {[%clk 0:02:38]}  axb6 {[%clk 0:02:36]} 17. Nxd5 {[%clk 0:02:25]}  Bxb2 {[%clk 0:02:35]} 18. Rab1 {[%clk 0:02:25]}  Bg7 {[%clk 0:02:23]} 19. Ne7+ {[%clk 0:02:22]}  Kh8 {[%clk 0:02:23]} 20. Nxc8 {[%clk 0:02:22]}  Rfxc8 {[%clk 0:02:22]} 21. Rxb6 {[%clk 0:02:23]}  Rc7 {[%clk 0:02:20]} 22. g3 {[%clk 0:02:11]}  h6 {[%clk 0:02:09]} 23. Rdb1 {[%clk 0:02:05]}  Ra7 {[%clk 0:02:09]} 24. a4 {[%clk 0:02:03]}  Bc3 {[%clk 0:02:03]} 25. Kg2 {[%clk 0:01:59]}  Ba5 {[%clk 0:02:00]} 26. R6b5 {[%clk 0:01:56]}  b6 {[%clk 0:01:59]} 27. Ne5 {[%clk 0:01:43]}  Kg7 {[%clk 0:01:57]} 28. Nd3 {[%clk 0:01:19]}  Rc4 {[%clk 0:01:45]} 29. Nf4 {[%clk 0:01:01]}  Rxa4 {[%clk 0:01:33]} 30. Nd5 {[%clk 0:00:58]}  Ra2 {[%clk 0:01:26]} 31. Nxb6 {[%clk 0:00:55]}  Re7 {[%clk 0:01:21]} 32. Nc4 {[%clk 0:00:53]}  Bc3 {[%clk 0:01:09]} 33. R5b3 {[%clk 0:00:33]}  Bd4 {[%clk 0:01:09]} 34. Rf3 {[%clk 0:00:31]}  Ree2 {[%clk 0:01:10]} 35. Rf1 {[%clk 0:00:30]}  f5 {[%clk 0:01:08]} 36. h4 {[%clk 0:00:11]}  Rac2 {[%clk 0:01:06]} 37. Na3 {[%clk 0:00:08]}  Ra2 {[%clk 0:01:06]} 38. Nc4 {[%clk 0:00:08]}  Kf6 {[%clk 0:01:07]} 39. Kg1 {[%clk 0:00:07]}  g5 {[%clk 0:01:04]} 40. hxg5+ {[%clk 0:00:07]}  hxg5 {[%clk 0:01:05]} 41. Ne3 {[%clk 0:00:07]}  Ra5 {[%clk 0:01:00]} 42. Ng4+ {[%clk 0:00:04]}  Kg6 {[%clk 0:00:59]} 43. Ne3 {[%clk 0:00:05]}  g4 {[%clk 0:00:44]} 44. Rf4 {[%clk 0:00:04]}  Bxe3 {[%clk 0:00:45]} 45. fxe3 {[%clk 0:00:04]}  Rxe3 {[%clk 0:00:46]} 46. Kg2 {[%clk 0:00:04]}  Kg5 {[%clk 0:00:42]} 47. R1f2 {[%clk 0:00:02]}  Re1 {[%clk 0:00:41]} 48. Rf1 {[%clk 0:00:02]}  Ree5 {[%clk 0:00:42]} 49. R1f2 {[%clk 0:00:02]}  Ra3 {[%clk 0:00:41]} 50. Rf1 {[%clk 0:00:02]}  Ra6 {[%clk 0:00:41]} 51. R1f2 {[%clk 0:00:02]}  Rf6 {[%clk 0:00:42]} 52. Rf1 {[%clk 0:00:02]}  Kg6 {[%clk 0:00:41]} 53. R1f2 {[%clk 0:00:03]}  Kf7 {[%clk 0:00:39]} 54. Rd2 {[%clk 0:00:02]}  Ke6 {[%clk 0:00:38]} 55. Kf2 {[%clk 0:00:02]}  Rh6 {[%clk 0:00:37]} 56. Kg2 {[%clk 0:00:02]}  Re4 {[%clk 0:00:34]} 57. Rdf2 {[%clk 0:00:01]}  Rf6 {[%clk 0:00:29]} 58. Rd2 {[%clk 0:00:01]}  Rxf4 {[%clk 0:00:21]} 59. gxf4 {[%clk 0:00:01]}  Rh6 {[%clk 0:00:21]} 60. Re2+ {[%clk 0:00:02]}  Kf6 {[%clk 0:00:20]} 61. Rb2 {[%clk 0:00:02]}  Rh3 {[%clk 0:00:17]} 62. Rb6+ {[%clk 0:00:02]}  Kf7 {[%clk 0:00:17]} 63. Rb5 {[%clk 0:00:03]}  Ke6 {[%clk 0:00:17]} 64. Re5+ {[%clk 0:00:02]}  Kf6 {[%clk 0:00:17]} 65. Rc5 {[%clk 0:00:02]}  Rf3 {[%clk 0:00:17]} 66. Rc6+ {[%clk 0:00:02]}  Ke7 {[%clk 0:00:17]} 67. Rc4 {[%clk 0:00:02]}  Ke6 {[%clk 0:00:17]} 68. Rd4 {[%clk 0:00:02]}  Re3 {[%clk 0:00:15]} 69. Rb4 {[%clk 0:00:01]}  Kf6 {[%clk 0:00:13]} 70. Rb6+ {[%clk 0:00:01]}  Re6 {[%clk 0:00:11]} 71. Rb5 {[%clk 0:00:02]}  Re4 {[%clk 0:00:11]} 72. Kg3 {[%clk 0:00:02]}  Re3+ {[%clk 0:00:11]} 73. Kg2 {[%clk 0:00:03]}  Rf3 {[%clk 0:00:11]} 74. Rb6+ {[%clk 0:00:03]}  Kg7 {[%clk 0:00:11]} 75. Rb4 {[%clk 0:00:03]}  Kg6 {[%clk 0:00:12]} 76. Rb6+ {[%clk 0:00:03]}  Kh5 {[%clk 0:00:12]} 77. Rb4 {[%clk 0:00:03]}  Kh4 {[%clk 0:00:12]} 78. Rc4 {[%clk 0:00:02]}  Rg3+ {[%clk 0:00:12]} 79. Kh2 {[%clk 0:00:02]}  Ra3 {[%clk 0:00:12]} 80. Kg2 {[%clk 0:00:01]}  Ra2+ {[%clk 0:00:11]} 81. Kf1 {[%clk 0:00:01]}  Kg3 {[%clk 0:00:11]} 0-1


[Site "https://www.chess.com"]

[Event "Titled Tuesday Blitz June 14 Late 2022"]
[White "Sarana, Alexey"]
[Black "Aldokhin, Ivan"]
[WhiteFideId "24133795"]
[BlackFideId "24115720"]
[WhiteElo "2666"]
[BlackElo "2231"]
[Result "1-0"]
[Round "07"]
[TimeControl "180+1"]
[Date "2022.06.14"]
[WhiteClock "0:01:59"]
[BlackClock "0:00:52"]

1. d4 {[%clk 0:02:49]}  Nf6 {[%clk 0:02:59]} 2. c4 {[%clk 0:02:50]}  g6 {[%clk 0:02:57]} 3. Nc3 {[%clk 0:02:50]}  Bg7 {[%clk 0:02:58]} 4. e4 {[%clk 0:02:50]}  d6 {[%clk 0:02:58]} 5. Be2 {[%clk 0:02:47]}  O-O {[%clk 0:02:58]} 6. Be3 {[%clk 0:02:48]}  Nc6 {[%clk 0:02:58]} 7. d5 {[%clk 0:02:46]}  Nb4 {[%clk 0:02:58]} 8. Nf3 {[%clk 0:02:45]}  Re8 {[%clk 0:02:57]} 9. O-O {[%clk 0:02:45]}  e6 {[%clk 0:02:58]} 10. a3 {[%clk 0:02:40]}  Na6 {[%clk 0:02:57]} 11. Qc2 {[%clk 0:02:40]}  exd5 {[%clk 0:02:56]} 12. cxd5 {[%clk 0:02:39]}  Qe7 {[%clk 0:02:41]} 13. Rfe1 {[%clk 0:02:27]}  Nxe4 {[%clk 0:02:03]} 14. Bxa6 {[%clk 0:02:26]}  Nxc3 {[%clk 0:01:59]} 15. Bg5 {[%clk 0:02:04]}  Bf5 {[%clk 0:01:00]} 16. Bd3 {[%clk 0:02:01]}  Ne4 {[%clk 0:00:52]} 17. Bxe7 {[%clk 0:01:59]} 1-0


[Site "https://www.chess.com"]

[Event "Titled Tuesday Blitz June 14 Late 2022"]
[White "Shirov, Alexei"]
[Black "Colpe, Malte"]
[WhiteFideId "2209390"]
[BlackFideId "24623075"]
[WhiteElo "2678"]
[BlackElo "2328"]
[Result "1-0"]
[Round "07"]
[TimeControl "180+1"]
[Date "2022.06.14"]
[WhiteClock "0:01:23"]
[BlackClock "0:01:39"]

1. e4 {[%clk 0:03:00]}  c5 {[%clk 0:02:58]} 2. Nc3 {[%clk 0:03:00]}  Nc6 {[%clk 0:02:56]} 3. Nge2 {[%clk 0:03:00]}  e5 {[%clk 0:02:56]} 4. Ng3 {[%clk 0:02:59]}  d6 {[%clk 0:02:53]} 5. Bc4 {[%clk 0:02:59]}  Be6 {[%clk 0:02:52]} 6. Bxe6 {[%clk 0:02:56]}  fxe6 {[%clk 0:02:52]} 7. Qh5+ {[%clk 0:02:34]}  g6 {[%clk 0:02:51]} 8. Qg4 {[%clk 0:02:34]}  Qe7 {[%clk 0:02:43]} 9. d3 {[%clk 0:02:28]}  Nd4 {[%clk 0:02:41]} 10. Bg5 {[%clk 0:02:20]}  Nf6 {[%clk 0:02:39]} 11. Qd1 {[%clk 0:01:55]}  O-O-O {[%clk 0:02:31]} 12. O-O {[%clk 0:01:54]}  h6 {[%clk 0:02:27]} 13. Be3 {[%clk 0:01:53]}  h5 {[%clk 0:02:25]} 14. Bxd4 {[%clk 0:01:52]}  cxd4 {[%clk 0:02:20]} 15. Nb5 {[%clk 0:01:52]}  a6 {[%clk 0:02:15]} 16. Na3 {[%clk 0:01:52]}  h4 {[%clk 0:02:13]} 17. Ne2 {[%clk 0:01:52]}  g5 {[%clk 0:02:09]} 18. c3 {[%clk 0:01:50]}  dxc3 {[%clk 0:02:09]} 19. Nxc3 {[%clk 0:01:45]}  Nh5 {[%clk 0:01:51]} 20. Qb3 {[%clk 0:01:36]}  Kb8 {[%clk 0:01:47]} 21. Nc4 {[%clk 0:01:34]}  Nf4 {[%clk 0:01:45]} 22. Na5 {[%clk 0:01:24]}  g4 {[%clk 0:01:39]} 23. Nc6+ {[%clk 0:01:23]} 1-0


[Site "https://www.chess.com"]